[Event "Titled Tuesday Blitz October 11 Early 2022"]
[White "Zemlyanskii, Ivan"]
[Black "Moreno Perez, Tobias Sebastian"]
[WhiteFideId "24249971"]
[BlackFideId "186716"]
[WhiteElo "2107"]
[BlackElo "2478"]
[Result "1-0"]
[Round "01"]
[TimeControl "180+1"]
[Date "2022.10.12"]
[WhiteClock "0:00:31"]
[BlackClock "0:00:16"]

1. d4 {[%clk 0:02:52]}  d5 {[%clk 0:02:59]} 2. c4 {[%clk 0:02:47]}  c6 {[%clk 0:02:59]} 3. Nf3 {[%clk 0:02:48]}  Nf6 {[%clk 0:02:59]} 4. e3 {[%clk 0:02:49]}  Bf5 {[%clk 0:02:58]} 5. cxd5 {[%clk 0:02:48]}  cxd5 {[%clk 0:02:58]} 6. Qb3 {[%clk 0:02:49]}  Qc7 {[%clk 0:02:57]} 7. Bd2 {[%clk 0:02:48]}  e6 {[%clk 0:02:55]} 8. Bb5+ {[%clk 0:02:48]}  Nc6 {[%clk 0:02:52]} 9. O-O {[%clk 0:02:48]}  a6 {[%clk 0:02:35]} 10. Bxc6+ {[%clk 0:02:43]}  Qxc6 {[%clk 0:02:36]} 11. Rc1 {[%clk 0:02:42]}  Qb5 {[%clk 0:02:28]} 12. Qxb5+ {[%clk 0:02:41]}  axb5 {[%clk 0:02:29]} 13. Nc3 {[%clk 0:02:41]}  Bd3 {[%clk 0:01:49]} 14. Ne5 {[%clk 0:02:39]}  Bc4 {[%clk 0:01:45]} 15. b3 {[%clk 0:02:39]}  b4 {[%clk 0:01:41]} 16. bxc4 {[%clk 0:02:38]}  bxc3 {[%clk 0:01:41]} 17. Bxc3 {[%clk 0:02:39]}  Bd6 {[%clk 0:01:19]} 18. Rab1 {[%clk 0:02:21]}  O-O {[%clk 0:01:11]} 19. Rxb7 {[%clk 0:01:51]}  Rxa2 {[%clk 0:01:10]} 20. c5 {[%clk 0:01:33]}  Bxe5 {[%clk 0:01:09]} 21. dxe5 {[%clk 0:01:33]}  Ne4 {[%clk 0:01:09]} 22. Bd4 {[%clk 0:01:27]}  f6 {[%clk 0:00:38]} 23. exf6 {[%clk 0:01:21]}  gxf6 {[%clk 0:00:37]} 24. c6 {[%clk 0:00:52]}  e5 {[%clk 0:00:34]} 25. c7 {[%clk 0:00:43]}  Raa8 {[%clk 0:00:19]} 26. Rcb1 {[%clk 0:00:33]}  exd4 {[%clk 0:00:15]} 27. Rb8 {[%clk 0:00:32]}  Nd6 {[%clk 0:00:16]} 28. Rxa8 {[%clk 0:00:31]} 1-0


[Site "https://www.chess.com"]

[Event "Titled Tuesday Blitz October 11 Early 2022"]
[White "Zhigalko, Sergei"]
[Black "Reprintsev, Alexander"]
[WhiteFideId "13502956"]
[BlackFideId "14100541"]
[WhiteElo "2662"]
[BlackElo "2230"]
[Result "1-0"]
[Round "01"]
[TimeControl "180+1"]
[Date "2022.10.11"]
[WhiteClock "0:00:06"]
[BlackClock "0:00:10"]

1. e4 {[%clk 0:03:00]}  d5 {[%clk 0:02:51]} 2. exd5 {[%clk 0:03:01]}  Qxd5 {[%clk 0:02:51]} 3. Nc3 {[%clk 0:03:01]}  Qa5 {[%clk 0:02:51]} 4. d4 {[%clk 0:03:01]}  Nf6 {[%clk 0:02:52]} 5. Nf3 {[%clk 0:03:01]}  Nc6 {[%clk 0:02:52]} 6. Bb5 {[%clk 0:03:01]}  Ne4 {[%clk 0:02:51]} 7. a4 {[%clk 0:03:00]}  Nxc3 {[%clk 0:02:49]} 8. bxc3 {[%clk 0:02:59]}  a6 {[%clk 0:02:50]} 9. Bxc6+ {[%clk 0:02:58]}  bxc6 {[%clk 0:02:51]} 10. O-O {[%clk 0:02:57]}  Bg4 {[%clk 0:02:50]} 11. Qd3 {[%clk 0:02:40]}  e6 {[%clk 0:02:42]} 12. Ne5 {[%clk 0:02:29]}  Bf5 {[%clk 0:02:40]} 13. Qg3 {[%clk 0:02:25]}  Bd6 {[%clk 0:02:19]} 14. Bf4 {[%clk 0:02:11]}  Bxe5 {[%clk 0:01:01]} 15. Bxe5 {[%clk 0:02:10]}  O-O-O {[%clk 0:01:02]} 16. Qxg7 {[%clk 0:01:29]}  Rhg8 {[%clk 0:00:57]} 17. Qxf7 {[%clk 0:01:23]}  Rdf8 {[%clk 0:00:57]} 18. Qe7 {[%clk 0:01:15]}  Re8 {[%clk 0:00:57]} 19. Qb4 {[%clk 0:00:57]}  Qxb4 {[%clk 0:00:57]} 20. cxb4 {[%clk 0:00:58]}  Bxc2 {[%clk 0:00:56]} 21. f3 {[%clk 0:00:47]}  Bb3 {[%clk 0:00:55]} 22. Kf2 {[%clk 0:00:43]}  Kd7 {[%clk 0:00:48]} 23. Rfb1 {[%clk 0:00:17]}  Bd5 {[%clk 0:00:48]} 24. b5 {[%clk 0:00:16]}  axb5 {[%clk 0:00:47]} 25. axb5 {[%clk 0:00:17]}  cxb5 {[%clk 0:00:46]} 26. Ra7 {[%clk 0:00:15]}  Rc8 {[%clk 0:00:42]} 27. Rxb5 {[%clk 0:00:15]}  Rgf8 {[%clk 0:00:17]} 28. Rc5 {[%clk 0:00:15]}  Bc6 {[%clk 0:00:18]} 29. Ke3 {[%clk 0:00:14]}  Rf7 {[%clk 0:00:18]} 30. Rc2 {[%clk 0:00:12]}  Re7 {[%clk 0:00:18]} 31. h4 {[%clk 0:00:09]}  Rf7 {[%clk 0:00:18]} 32. Rc1 {[%clk 0:00:06]}  h5 {[%clk 0:00:18]} 33. Rc2 {[%clk 0:00:06]}  Re7 {[%clk 0:00:18]} 34. Ra5 {[%clk 0:00:06]}  Bd5 {[%clk 0:00:16]} 35. Bh2 {[%clk 0:00:05]}  c6 {[%clk 0:00:15]} 36. Ra7+ {[%clk 0:00:04]}  Ke8 {[%clk 0:00:15]} 37. Rxe7+ {[%clk 0:00:04]}  Kxe7 {[%clk 0:00:16]} 38. Rb2 {[%clk 0:00:04]}  Rd8 {[%clk 0:00:16]} 39. Rb7+ {[%clk 0:00:04]}  Rd7 {[%clk 0:00:17]} 40. Rb6 {[%clk 0:00:04]}  Ra7 {[%clk 0:00:16]} 41. Bf4 {[%clk 0:00:03]}  Ra2 {[%clk 0:00:16]} 42. Rb7+ {[%clk 0:00:03]}  Ke8 {[%clk 0:00:15]} 43. Rg7 {[%clk 0:00:03]}  Ra3+ {[%clk 0:00:14]} 44. Kf2 {[%clk 0:00:03]}  Ra2+ {[%clk 0:00:14]} 45. Kg1 {[%clk 0:00:03]}  Ra1+ {[%clk 0:00:13]} 46. Kh2 {[%clk 0:00:03]}  Rd1 {[%clk 0:00:14]} 47. Be5 {[%clk 0:00:03]}  Re1 {[%clk 0:00:14]} 48. Rg8+ {[%clk 0:00:03]}  Kf7 {[%clk 0:00:14]} 49. Rg7+ {[%clk 0:00:04]}  Kf8 {[%clk 0:00:14]} 50. Rg5 {[%clk 0:00:04]}  c5 {[%clk 0:00:13]} 51. Bd6+ {[%clk 0:00:05]}  Kf7 {[%clk 0:00:13]} 52. dxc5 {[%clk 0:00:05]}  Re2 {[%clk 0:00:14]} 53. Kg1 {[%clk 0:00:05]}  Rc2 {[%clk 0:00:13]} 54. Rxh5 {[%clk 0:00:05]}  Kf6 {[%clk 0:00:14]} 55. Rg5 {[%clk 0:00:05]}  Rc1+ {[%clk 0:00:14]} 56. Kh2 {[%clk 0:00:05]}  Rc2 {[%clk 0:00:15]} 57. Be5+ {[%clk 0:00:05]}  Kf7 {[%clk 0:00:14]} 58. Rg7+ {[%clk 0:00:05]}  Kf8 {[%clk 0:00:15]} 59. Rg3 {[%clk 0:00:05]}  Kf7 {[%clk 0:00:14]} 60. Bd6 {[%clk 0:00:05]}  Kf6 {[%clk 0:00:14]} 61. h5 {[%clk 0:00:05]}  Bc4 {[%clk 0:00:13]} 62. h6 {[%clk 0:00:05]}  Bd3 {[%clk 0:00:13]} 63. Rg7 {[%clk 0:00:05]}  Rd2 {[%clk 0:00:11]} 64. Be7+ {[%clk 0:00:06]}  Ke5 {[%clk 0:00:10]} 65. h7 {[%clk 0:00:06]} 1-0


[Site "https://www.chess.com"]

[Event "Titled Tuesday Blitz October 11 Early 2022"]
[White "Ziatdinov, Raset"]
[Black "Hambleton, Aman"]
[WhiteFideId "2015323"]
[BlackFideId "2606577"]
[WhiteElo "2220"]
[BlackElo "2538"]
[Result "1-0"]
[Round "01"]
[TimeControl "180+1"]
[Date "2022.10.12"]
[WhiteClock "0:00:17"]
[BlackClock "0:00:03"]

1. Nc3 {[%clk 0:02:58]}  d5 {[%clk 0:02:51]} 2. d4 {[%clk 0:02:57]}  e6 {[%clk 0:02:42]} 3. Bf4 {[%clk 0:02:57]}  a6 {[%clk 0:02:41]} 4. e3 {[%clk 0:02:56]}  Bd6 {[%clk 0:02:39]} 5. Bxd6 {[%clk 0:02:56]}  Qxd6 {[%clk 0:02:40]} 6. Nf3 {[%clk 0:02:56]}  Nf6 {[%clk 0:02:40]} 7. Ne5 {[%clk 0:02:56]}  c5 {[%clk 0:02:23]} 8. Be2 {[%clk 0:02:54]}  Nc6 {[%clk 0:02:04]} 9. Nxc6 {[%clk 0:02:42]}  Qxc6 {[%clk 0:02:02]} 10. O-O {[%clk 0:02:39]}  O-O {[%clk 0:01:58]} 11. a4 {[%clk 0:02:37]}  b6 {[%clk 0:01:57]} 12. Bf3 {[%clk 0:02:35]}  Bb7 {[%clk 0:01:54]} 13. Re1 {[%clk 0:02:32]}  Rfd8 {[%clk 0:01:49]} 14. h3 {[%clk 0:02:25]}  Qc7 {[%clk 0:01:23]} 15. Qd3 {[%clk 0:02:16]}  Rac8 {[%clk 0:01:16]} 16. g3 {[%clk 0:02:12]}  g6 {[%clk 0:01:15]} 17. h4 {[%clk 0:02:11]}  h5 {[%clk 0:01:11]} 18. Kg2 {[%clk 0:02:03]}  Kg7 {[%clk 0:01:11]} 19. Ra3 {[%clk 0:01:58]}  e5 {[%clk 0:01:06]} 20. Qd2 {[%clk 0:01:48]}  cxd4 {[%clk 0:00:50]} 21. exd4 {[%clk 0:01:45]}  e4 {[%clk 0:00:50]} 22. Bd1 {[%clk 0:01:43]}  Qd6 {[%clk 0:00:32]} 23. Rb3 {[%clk 0:01:41]}  Nd7 {[%clk 0:00:25]} 24. Ne2 {[%clk 0:01:33]}  Nf8 {[%clk 0:00:24]} 25. Qf4 {[%clk 0:01:29]}  Rc4 {[%clk 0:00:18]} 26. a5 {[%clk 0:00:58]}  b5 {[%clk 0:00:18]} 27. Qxd6 {[%clk 0:00:57]}  Rxd6 {[%clk 0:00:19]} 28. Rc3 {[%clk 0:00:57]}  Ne6 {[%clk 0:00:10]} 29. Rxc4 {[%clk 0:00:55]}  bxc4 {[%clk 0:00:05]} 30. c3 {[%clk 0:00:53]}  Rd8 {[%clk 0:00:04]} 31. Ba4 {[%clk 0:00:53]}  Rb8 {[%clk 0:00:04]} 32. Rb1 {[%clk 0:00:52]}  Kf6 {[%clk 0:00:03]} 33. b4 {[%clk 0:00:51]}  Bc8 {[%clk 0:00:02]} 34. Bc6 {[%clk 0:00:50]}  Nc7 {[%clk 0:00:02]} 35. Nf4 {[%clk 0:00:49]}  Be6 {[%clk 0:00:03]} 36. Ra1 {[%clk 0:00:44]}  Ke7 {[%clk 0:00:03]} 37. Re1 {[%clk 0:00:43]}  Kd6 {[%clk 0:00:04]} 38. Ba4 {[%clk 0:00:43]}  Bg4 {[%clk 0:00:03]} 39. Bc2 {[%clk 0:00:42]}  Bf3+ {[%clk 0:00:03]} 40. Kg1 {[%clk 0:00:43]}  Rg8 {[%clk 0:00:03]} 41. Bd1 {[%clk 0:00:43]}  Bxd1 {[%clk 0:00:02]} 42. Rxd1 {[%clk 0:00:44]}  Nb5 {[%clk 0:00:03]} 43. Rc1 {[%clk 0:00:43]}  f6 {[%clk 0:00:03]} 44. Kg2 {[%clk 0:00:42]}  Nc7 {[%clk 0:00:03]} 45. Kh3 {[%clk 0:00:37]}  Ke7 {[%clk 0:00:03]} 46. Re1 {[%clk 0:00:36]}  Kf7 {[%clk 0:00:04]} 47. f3 {[%clk 0:00:35]}  Re8 {[%clk 0:00:02]} 48. fxe4 {[%clk 0:00:34]}  dxe4 {[%clk 0:00:03]} 49. Kg2 {[%clk 0:00:34]}  Nb5 {[%clk 0:00:02]} 50. Re3 {[%clk 0:00:34]}  f5 {[%clk 0:00:02]} 51. Nd5 {[%clk 0:00:33]}  Rd8 {[%clk 0:00:02]} 52. Nb6 {[%clk 0:00:32]}  Nd6 {[%clk 0:00:02]} 53. Re1 {[%clk 0:00:31]}  Ke6 {[%clk 0:00:02]} 54. Kf2 {[%clk 0:00:27]}  Rg8 {[%clk 0:00:02]} 55. d5+ {[%clk 0:00:25]}  Ke5 {[%clk 0:00:02]} 56. Nd7+ {[%clk 0:00:25]}  Kxd5 {[%clk 0:00:02]} 57. Nf6+ {[%clk 0:00:25]}  Ke6 {[%clk 0:00:03]} 58. Nxg8 {[%clk 0:00:26]}  Kf7 {[%clk 0:00:03]} 59. Rd1 {[%clk 0:00:27]}  Nb5 {[%clk 0:00:03]} 60. Rd7+ {[%clk 0:00:27]}  Kxg8 {[%clk 0:00:04]} 61. Ke3 {[%clk 0:00:26]}  Nxc3 {[%clk 0:00:04]} 62. Kf4 {[%clk 0:00:27]}  Nb5 {[%clk 0:00:02]} 63. Kg5 {[%clk 0:00:27]}  Kf8 {[%clk 0:00:02]} 64. Kf6 {[%clk 0:00:27]}  Ke8 {[%clk 0:00:02]} 65. Rd1 {[%clk 0:00:24]}  c3 {[%clk 0:00:02]} 66. Kxg6 {[%clk 0:00:24]}  e3 {[%clk 0:00:02]} 67. Re1 {[%clk 0:00:23]}  c2 {[%clk 0:00:03]} 68. Rxe3+ {[%clk 0:00:23]}  Kd7 {[%clk 0:00:03]} 69. Re1 {[%clk 0:00:23]}  Nd4 {[%clk 0:00:02]} 70. Rc1 {[%clk 0:00:24]}  Ke6 {[%clk 0:00:02]} 71. Kxh5 {[%clk 0:00:24]}  Kf6 {[%clk 0:00:02]} 72. b5 {[%clk 0:00:22]}  axb5 {[%clk 0:00:01]} 73. a6 {[%clk 0:00:22]}  b4 {[%clk 0:00:01]} 74. a7 {[%clk 0:00:23]}  b3 {[%clk 0:00:02]} 75. a8=Q {[%clk 0:00:24]}  b2 {[%clk 0:00:03]} 76. Qh8+ {[%clk 0:00:24]}  Ke6 {[%clk 0:00:03]} 77. Re1+ {[%clk 0:00:23]}  Kd5 {[%clk 0:00:03]} 78. Re5+ {[%clk 0:00:21]}  Kc4 {[%clk 0:00:03]} 79. Qc8+ {[%clk 0:00:21]}  Kd3 {[%clk 0:00:04]} 80. Qa6+ {[%clk 0:00:19]}  Kd2 {[%clk 0:00:04]} 81. Qa5+ {[%clk 0:00:18]}  Kd3 {[%clk 0:00:03]} 82. Qa3+ {[%clk 0:00:17]} 1-0


[Site "https://www.chess.com"]

[Event "Titled Tuesday Blitz October 11 Early 2022"]
[White "Aarav Dengla"]
[Black "Klukin, Kirill"]
[WhiteFideId "45059756"]
[BlackFideId "24199273"]
[WhiteElo "2257"]
[BlackElo "2290"]
[Result "0-1"]
[Round "02"]
[TimeControl "180+1"]
[Date "2022.10.12"]
[WhiteClock "0:00:19"]
[BlackClock "0:00:23"]

1. e4 {[%clk 0:03:00]}  c5 {[%clk 0:02:59]} 2. Nf3 {[%clk 0:03:00]}  Nc6 {[%clk 0:02:59]} 3. Bb5 {[%clk 0:02:57]}  g6 {[%clk 0:02:59]} 4. Bxc6 {[%clk 0:02:55]}  bxc6 {[%clk 0:03:00]} 5. d3 {[%clk 0:02:50]}  Bg7 {[%clk 0:02:59]} 6. O-O {[%clk 0:02:50]}  d6 {[%clk 0:03:00]} 7. Nbd2 {[%clk 0:02:49]}  e5 {[%clk 0:03:00]} 8. c3 {[%clk 0:02:49]}  Ne7 {[%clk 0:03:00]} 9. Re1 {[%clk 0:02:48]}  O-O {[%clk 0:03:00]} 10. Nf1 {[%clk 0:02:48]}  f5 {[%clk 0:02:59]} 11. h3 {[%clk 0:02:40]}  h6 {[%clk 0:02:56]} 12. exf5 {[%clk 0:02:35]}  Nxf5 {[%clk 0:02:52]} 13. Ne3 {[%clk 0:02:33]}  Kh7 {[%clk 0:02:51]} 14. Nxf5 {[%clk 0:02:31]}  Bxf5 {[%clk 0:02:52]} 15. d4 {[%clk 0:02:31]}  e4 {[%clk 0:02:47]} 16. Nd2 {[%clk 0:02:19]}  cxd4 {[%clk 0:02:45]} 17. cxd4 {[%clk 0:02:20]}  Qh4 {[%clk 0:02:20]} 18. Nf1 {[%clk 0:01:53]}  Bxh3 {[%clk 0:02:05]} 19. Ng3 {[%clk 0:01:24]}  Rxf2 {[%clk 0:01:46]} 20. Kxf2 {[%clk 0:00:56]}  Rf8+ {[%clk 0:01:45]} 21. Kg1 {[%clk 0:00:56]}  Qxg3 {[%clk 0:01:44]} 22. Re2 {[%clk 0:00:56]}  Bg4 {[%clk 0:01:23]} 23. Qe1 {[%clk 0:00:44]}  Bxd4+ {[%clk 0:01:08]} 24. Be3 {[%clk 0:00:41]}  Qe5 {[%clk 0:00:25]} 25. Rf2 {[%clk 0:00:39]}  Rf5 {[%clk 0:00:22]} 26. Rxf5 {[%clk 0:00:34]}  gxf5 {[%clk 0:00:22]} 27. Rc1 {[%clk 0:00:33]}  c5 {[%clk 0:00:22]} 28. Bxd4 {[%clk 0:00:30]}  Qxd4+ {[%clk 0:00:22]} 29. Qf2 {[%clk 0:00:26]}  Kg7 {[%clk 0:00:20]} 30. Qxd4+ {[%clk 0:00:21]}  cxd4 {[%clk 0:00:21]} 31. Rc7+ {[%clk 0:00:21]}  Kf6 {[%clk 0:00:22]} 32. Rxa7 {[%clk 0:00:22]}  d3 {[%clk 0:00:22]} 33. Rd7 {[%clk 0:00:19]}  Ke6 {[%clk 0:00:23]} 0-1


[Site "https://www.chess.com"]

[Event "Titled Tuesday Blitz October 11 Early 2022"]
[White "Aguilar, Juan"]
[Black "Pershin, Denis"]
[WhiteFideId "3800091"]
[BlackFideId "24165506"]
[WhiteElo "2382"]
[BlackElo "2300"]
[Result "0-1"]
[Round "02"]
[TimeControl "180+1"]
[Date "2022.10.12"]
[WhiteClock "0:00:02"]
[BlackClock "0:00:13"]

1. d4 {[%clk 0:03:00]}  d5 {[%clk 0:02:47]} 2. c4 {[%clk 0:03:00]}  dxc4 {[%clk 0:02:46]} 3. e4 {[%clk 0:02:59]}  Nf6 {[%clk 0:02:44]} 4. Nc3 {[%clk 0:02:51]}  e5 {[%clk 0:02:36]} 5. Nf3 {[%clk 0:02:44]}  exd4 {[%clk 0:02:31]} 6. Qxd4 {[%clk 0:02:41]}  Qxd4 {[%clk 0:02:28]} 7. Nxd4 {[%clk 0:02:41]}  Bc5 {[%clk 0:02:26]} 8. Be3 {[%clk 0:02:20]}  c6 {[%clk 0:01:42]} 9. Bxc4 {[%clk 0:02:14]}  O-O {[%clk 0:01:37]} 10. f3 {[%clk 0:01:53]}  Nbd7 {[%clk 0:01:34]} 11. O-O {[%clk 0:01:49]}  Ne5 {[%clk 0:01:34]} 12. Be2 {[%clk 0:01:49]}  Re8 {[%clk 0:01:24]} 13. Rfd1 {[%clk 0:01:35]}  Bd7 {[%clk 0:01:22]} 14. Rac1 {[%clk 0:01:34]}  Rad8 {[%clk 0:01:21]} 15. Na4 {[%clk 0:01:27]}  Bf8 {[%clk 0:01:19]} 16. Nc5 {[%clk 0:01:24]}  Bc8 {[%clk 0:01:19]} 17. Ndb3 {[%clk 0:01:15]}  b6 {[%clk 0:01:13]} 18. Nd3 {[%clk 0:01:11]}  Nxd3 {[%clk 0:01:11]} 19. Rxd3 {[%clk 0:01:08]}  c5 {[%clk 0:01:10]} 20. Rxd8 {[%clk 0:01:03]}  Rxd8 {[%clk 0:01:10]} 21. Nd2 {[%clk 0:00:34]}  Ne8 {[%clk 0:00:57]} 22. Nc4 {[%clk 0:00:34]}  Nc7 {[%clk 0:00:58]} 23. a4 {[%clk 0:00:23]}  Ne6 {[%clk 0:00:53]} 24. a5 {[%clk 0:00:23]}  b5 {[%clk 0:00:51]} 25. Ne5 {[%clk 0:00:22]}  a6 {[%clk 0:00:50]} 26. f4 {[%clk 0:00:15]}  c4 {[%clk 0:00:49]} 27. f5 {[%clk 0:00:10]}  Nd4 {[%clk 0:00:42]} 28. Kf2 {[%clk 0:00:11]}  Nb3 {[%clk 0:00:40]} 29. Rd1 {[%clk 0:00:10]}  Rxd1 {[%clk 0:00:37]} 30. Bxd1 {[%clk 0:00:11]}  Nxa5 {[%clk 0:00:37]} 31. Bb6 {[%clk 0:00:09]}  Nb7 {[%clk 0:00:36]} 32. Nc6 {[%clk 0:00:07]}  f6 {[%clk 0:00:27]} 33. Kf3 {[%clk 0:00:07]}  Bd6 {[%clk 0:00:28]} 34. Bc2 {[%clk 0:00:05]}  Kf7 {[%clk 0:00:28]} 35. h4 {[%clk 0:00:04]}  Bd7 {[%clk 0:00:22]} 36. Nd4 {[%clk 0:00:03]}  Be5 {[%clk 0:00:21]} 37. g4 {[%clk 0:00:03]}  h6 {[%clk 0:00:20]} 38. g5 {[%clk 0:00:02]}  hxg5 {[%clk 0:00:21]} 39. hxg5 {[%clk 0:00:02]}  fxg5 {[%clk 0:00:22]} 40. Ne2 {[%clk 0:00:02]}  Bxb2 {[%clk 0:00:22]} 41. Kg4 {[%clk 0:00:03]}  Bf6 {[%clk 0:00:20]} 42. Bd4 {[%clk 0:00:02]}  b4 {[%clk 0:00:17]} 43. e5 {[%clk 0:00:02]}  Be7 {[%clk 0:00:15]} 44. e6+ {[%clk 0:00:02]}  Bxe6 {[%clk 0:00:16]} 45. fxe6+ {[%clk 0:00:03]}  Kxe6 {[%clk 0:00:17]} 46. Bf5+ {[%clk 0:00:01]}  Kd5 {[%clk 0:00:16]} 47. Bxg7 {[%clk 0:00:02]}  Nd6 {[%clk 0:00:16]} 48. Bb1 {[%clk 0:00:01]}  c3 {[%clk 0:00:13]} 49. Kf3 {[%clk 0:00:02]}  Kc4 {[%clk 0:00:13]} 50. Ba2+ {[%clk 0:00:01]}  b3 {[%clk 0:00:13]} 51. Nxc3 {[%clk 0:00:01]}  bxa2 {[%clk 0:00:13]} 52. Nxa2 {[%clk 0:00:02]}  Kb3 {[%clk 0:00:13]} 53. Nc1+ {[%clk 0:00:02]}  Kc2 {[%clk 0:00:12]} 54. Ne2 {[%clk 0:00:03]}  Nb5 {[%clk 0:00:12]} 55. Ng3 {[%clk 0:00:03]}  a5 {[%clk 0:00:12]} 56. Kg4 {[%clk 0:00:04]}  a4 {[%clk 0:00:12]} 57. Ne4 {[%clk 0:00:04]}  a3 {[%clk 0:00:12]} 58. Nxg5 {[%clk 0:00:04]}  Bxg5 {[%clk 0:00:12]} 59. Kxg5 {[%clk 0:00:04]}  Nc3 {[%clk 0:00:13]} 60. Kg6 {[%clk 0:00:02]}  a2 {[%clk 0:00:13]} 0-1


[Site "https://www.chess.com"]

[Event "Titled Tuesday Blitz October 11 Early 2022"]
[White "Aizpurua, Patrick Emilio"]
[Black "Kovalenko, Igor"]
[WhiteFideId "6600522"]
[BlackFideId "14117908"]
[WhiteElo "2378"]
[BlackElo "2574"]
[Result "0-1"]
[Round "02"]
[TimeControl "180+1"]
[Date "2022.10.11"]
[WhiteClock "0:00:05"]
[BlackClock "0:01:52"]

1. d4 {[%clk 0:03:00]}  Nf6 {[%clk 0:02:59]} 2. Nf3 {[%clk 0:03:01]}  g6 {[%clk 0:02:58]} 3. c4 {[%clk 0:03:02]}  Bg7 {[%clk 0:02:58]} 4. g3 {[%clk 0:03:01]}  d6 {[%clk 0:02:57]} 5. Bg2 {[%clk 0:03:01]}  O-O {[%clk 0:02:58]} 6. O-O {[%clk 0:03:01]}  Nc6 {[%clk 0:02:59]} 7. Nc3 {[%clk 0:02:59]}  a6 {[%clk 0:02:59]} 8. h3 {[%clk 0:02:59]}  Rb8 {[%clk 0:02:58]} 9. e4 {[%clk 0:02:57]}  b5 {[%clk 0:02:58]} 10. e5 {[%clk 0:02:55]}  Ne8 {[%clk 0:02:50]} 11. cxb5 {[%clk 0:02:54]}  axb5 {[%clk 0:02:50]} 12. Qe2 {[%clk 0:02:47]}  b4 {[%clk 0:02:49]} 13. Nb1 {[%clk 0:02:20]}  dxe5 {[%clk 0:02:48]} 14. dxe5 {[%clk 0:02:21]}  Nd4 {[%clk 0:02:49]} 15. Nxd4 {[%clk 0:02:21]}  Qxd4 {[%clk 0:02:49]} 16. Re1 {[%clk 0:02:19]}  c5 {[%clk 0:02:46]} 17. Nd2 {[%clk 0:02:15]}  Nc7 {[%clk 0:02:43]} 18. Nf3 {[%clk 0:02:14]}  Qd7 {[%clk 0:02:41]} 19. Be3 {[%clk 0:02:11]}  Ba6 {[%clk 0:02:41]} 20. Rad1 {[%clk 0:01:54]}  Qa4 {[%clk 0:02:35]} 21. Qd2 {[%clk 0:01:47]}  Ne6 {[%clk 0:02:30]} 22. b3 {[%clk 0:01:45]}  Qa5 {[%clk 0:02:29]} 23. Qc2 {[%clk 0:01:09]}  Rfc8 {[%clk 0:02:28]} 24. Ng5 {[%clk 0:01:06]}  Nxg5 {[%clk 0:02:25]} 25. Bxg5 {[%clk 0:01:07]}  e6 {[%clk 0:02:25]} 26. Rd7 {[%clk 0:01:02]}  c4 {[%clk 0:02:22]} 27. Qd2 {[%clk 0:01:00]}  Bb5 {[%clk 0:02:18]} 28. Re7 {[%clk 0:00:49]}  c3 {[%clk 0:02:14]} 29. Qf4 {[%clk 0:00:48]}  Be8 {[%clk 0:02:14]} 30. Bh6 {[%clk 0:00:40]}  Qc5 {[%clk 0:02:12]} 31. Bxg7 {[%clk 0:00:38]}  Qxe7 {[%clk 0:02:11]} 32. Bf6 {[%clk 0:00:38]}  Qf8 {[%clk 0:02:12]} 33. Be4 {[%clk 0:00:34]}  Bc6 {[%clk 0:02:11]} 34. Bc2 {[%clk 0:00:34]}  Bd5 {[%clk 0:02:11]} 35. h4 {[%clk 0:00:34]}  Ra8 {[%clk 0:02:11]} 36. Ra1 {[%clk 0:00:30]}  Ra3 {[%clk 0:01:58]} 37. h5 {[%clk 0:00:25]}  Rca8 {[%clk 0:01:58]} 38. hxg6 {[%clk 0:00:26]}  fxg6 {[%clk 0:01:58]} 39. Qg4 {[%clk 0:00:22]}  Qf7 {[%clk 0:01:56]} 40. Qxb4 {[%clk 0:00:17]}  Rxa2 {[%clk 0:01:57]} 41. Rxa2 {[%clk 0:00:18]}  Rxa2 {[%clk 0:01:57]} 42. Qxc3 {[%clk 0:00:17]}  Qc7 {[%clk 0:01:52]} 43. Qxc7 {[%clk 0:00:05]}  Ra1+ {[%clk 0:01:52]} 44. Bd1 {[%clk 0:00:05]}  Rxd1+ {[%clk 0:01:52]} 0-1


[Site "https://www.chess.com"]